fUST/lending_fUST_20251004
["ID","MTS","AMOUNT","RATE_DAILY","PERIOD"]
[389127380,1759582406014,-500.0,0.00019452,2]
[389127381,1759582406047,-910.23,0.00019452,2]
[389127382,1759582406077,-500.0,0.00019452,2]
[389127383,1759582406106,-704.47,0.00019452,2]
[389127384,1759582406134,-500.0,0.00019452,2]
[389127385,1759582406343,-551.81,0.00019452,2]
[389127386,1759582406374,-500.0,0.00019452,2]
[389127387,1759582406405,-500.0,0.00019452,2]
[389127388,1759582406512,-1488.24,0.00019452,2]
[389127389,1759582406543,-780.04,0.00019452,2]
[389127390,1759582406571,-196.46238675,0.00019452,2]
[389127391,1759582406599,-376.06112681,0.00019452,2]
[389127392,1759582406626,-500.0,0.00019452,2]
[389127393,1759582406654,-592.3338692,0.00019452,2]
[389127394,1759582406682,-500.0,0.00019452,2]
[389127395,1759582406711,-135.11523448,0.00019452,2]
[389127396,1759582407848,-264.53772188,0.00019452,2]
[389127397,1759582407863,-196.46238675,0.00019452,2]
[389127398,1759582407877,-376.06112681,0.00019452,2]
[389127399,1759582407893,-26.44353008,0.00019452,2]
[389127400,1759582407904,-473.55646992,0.00019452,2]
[389127401,1759582407918,-26.44353008,0.00019452,2]
[389127402,1759582407927,-500.0,0.00019452,2]
[389127403,1759582407936,-65.89033912,0.00019452,2]
[389127404,1759582407951,-500.0,0.00019452,2]
[389127405,1759582407965,-784.32966088,0.00019452,2]
[389127406,1759582407975,-214.29033912,0.00019452,2]
[389127407,1759582408167,-500.0,0.00019178,2]
[389127408,1759582408197,-640.45,0.00019178,2]
[389127409,1759582408227,-285.70966088,0.00019452,2]
[389127410,1759582408256,-627.42,0.00019452,2]
[389127411,1759582408286,-661.69,0.00019452,2]
[389127412,1759582408315,-500.0,0.00019452,2]
[389127413,1759582408344,-500.0,0.00019452,2]
[389127414,1759582408374,-500.0,0.00019452,2]
[389127415,1759582408403,-59.77067824,0.00019452,2]
[389127416,1759582408495,-1449.92932176,0.00019452,2]
[389127417,1759582408524,-500.0,0.00019452,2]
[389127418,1759582408555,-578.71,0.00019452,2]
[389127419,1759582408585,-554.38,0.00019452,2]
[389127420,1759582408615,-500.0,0.00019452,2]
[389127421,1759582408643,-500.0,0.00019452,2]
[389127422,1759582408671,-630.78,0.00019452,2]
[389127423,1759582408701,-226.30883709,0.00019452,2]
[389127424,1759582408833,-1067.81,0.00019452,2]
[389127425,1759582408868,-715.43,0.00019452,2]
[389127426,1759582408898,-500.0,0.00019452,2]
[389127427,1759582408928,-500.0,0.00019452,2]
[389127428,1759582408962,-676.23,0.00019452,2]
[389127429,1759582408997,-500.0,0.00019452,2]
[389127430,1759582409160,-2454.08,0.00019452,2]
[389127431,1759582409196,-1234.75,0.00019452,2]
[389127432,1759582409359,-2622.35,0.00019452,2]
[389127433,1759582409391,-500.0,0.00019452,2]
[389127434,1759582409424,-161.77380414,0.00019452,2]
[389127435,1759582409458,-500.0,0.00019452,2]
[389127436,1759582409490,-500.0,0.00019452,2]
[389127437,1759582409520,-500.0,0.00019452,2]
[389127438,1759582409686,-500.0,0.00019452,2]
[389127439,1759582409721,-902.15,0.00019452,2]
[389127440,1759582409757,-500.0,0.00019452,2]
[389127441,1759582409791,-500.0,0.00019452,2]
[389127442,1759582409823,-1000.0,0.00019721,2]
[389127443,1759582409853,-1000.0,0.00019721,2]
[389127444,1759582409883,-500.0,0.00019726,2]
[389127445,1759582410300,-370.99300406,0.00019726,2]
[389127446,1759582410317,-129.00699594,0.00019726,2]
[389127447,1759582410327,-370.99300406,0.00019726,2]
[389127448,1759582410343,-129.00699594,0.00019726,2]
[389127449,1759582410354,-370.99300406,0.00019726,2]
[389127450,1759582410370,-129.00699594,0.00019726,2]
[389127451,1759582410380,-302.75539578,0.00019726,2]
[389127452,1759582410407,-197.24460422,0.00019726,2]
[389127453,1759582410417,-302.75539578,0.00019726,2]
[389127454,1759582410443,-503.96,0.00019178,2]
[389127455,1759582410453,-398.19,0.00019178,2]
[389127456,1759582410468,-101.81,0.00019178,2]
[389127457,1759582410479,-398.19,0.00019726,2]
[389127458,1759582410495,-500.0,0.00019726,2]
[389127459,1759582410510,-1000.0,0.00019726,2]
[389127460,1759582410526,-439.52565022,0.00019726,2]
[389127461,1759582410537,-500.0,0.00019726,2]
[389127462,1759582410547,-60.47434978,0.00019726,2]
[389127463,1759582410564,-439.52565022,0.00019726,2]
[389127464,1759582410574,-60.47434978,0.00019726,2]
[389127465,1759582410591,-90.52565022,0.00019726,2]
[389127466,1759582410601,-105.18434978,0.00019726,2]
[389127467,1759582424145,-500.0,0.00019178,2]
[389127468,1759582424175,-524.69,0.00019178,2]
[389127469,1759582424205,-500.0,0.00019178,2]
[389127470,1759582424234,-500.0,0.00019178,2]
[389127471,1759582424262,-500.0,0.00019178,2]
[389127472,1759582424291,-500.0,0.00019178,3]
[389127473,1759582424319,-500.0,0.00019178,2]
[389127474,1759582424349,-541.07,0.00019178,2]
[389127475,1759582424469,-1868.49,0.00019178,2]
[389127476,1759582424498,-1163.05,0.00019178,2]
[389127477,1759582424525,-500.0,0.00019178,2]
[389127478,1759582424552,-644.08,0.00019178,2]
[389127479,1759582424580,-500.0,0.00019178,2]
[389127480,1759582424613,-148.77,0.00019178,2]
[389127481,1759582424716,-351.23,0.00019178,2]
[389127482,1759582424744,-500.0,0.00019178,2]
[389127483,1759582424776,-1529.22,0.00019178,2]
[389127484,1759582424804,-1028.95,0.00019178,2]
[389127485,1759582424832,-500.0,0.00019452,2]
[389127486,1759582424860,-503.96,0.00019452,2]
[389127487,1759582424892,-524.69,0.00019452,2]
[389127488,1759582425017,-500.0,0.00019452,2]
[389127489,1759582425046,-500.0,0.00019452,2]
[389127490,1759582425075,-481.79417268,0.00019452,2]
[389127491,1759582425106,-319.52372586,0.00019452,2]
[389127492,1759582425136,-2409.56,0.00019452,2]
[389127493,1759582425168,-500.0,0.00019452,2]
[389127494,1759582425655,-500.0,0.00019178,2]
[389127495,1759582425664,-1163.05,0.00019452,2]
[389127496,1759582425673,-214.22,0.00019452,2]
[389127497,1759582425689,-429.86,0.00019452,2]
[389127498,1759582425698,-70.14,0.00019452,2]
[389127499,1759582425719,-429.86,0.00019452,2]
[389127500,1759582425731,-148.39420292,0.00019452,2]
[389127501,1759582432341,-518.58,0.00019178,2]
[389127502,1759582432370,-500.0,0.00019178,2]
[389127503,1759582432399,-500.0,0.00019178,2]
[389127504,1759582432428,-500.0,0.00019178,2]
[389127505,1759582432456,-500.0,0.00019178,2]
[389127506,1759582432485,-1831.18,0.00019178,2]
[389127507,1759582432515,-500.0,0.00019178,2]
[389127508,1759582432662,-300.49,0.00019178,2]
[389127509,1759582432696,-614.98,0.00019178,2]
[389127510,1759582432726,-642.92,0.00019178,2]
[389127511,1759582432756,-500.0,0.00019178,2]
[389127512,1759582432788,-512.31,0.00019178,2]
[389127513,1759582432816,-880.55579708,0.00019452,2]
[389127514,1759582432845,-1529.22,0.00019452,2]
[389127515,1759582432874,-140.03840584,0.00019452,2]
[389127516,1759582432945,-359.96159416,0.00019452,2]
[389127517,1759582432976,-500.0,0.00019452,2]
[389127518,1759582433006,-1831.18,0.00019452,2]
[389127519,1759582433037,-500.0,0.00019452,2]
[389127520,1759582433068,-915.47,0.00019452,2]
[389127521,1759582433101,-642.92,0.00019452,2]
[389127522,1759582433131,-104.66844987,0.00019452,2]
[389127523,1759582433332,-291.60991194,0.00019452,2]
[389127524,1759582433364,-512.31,0.00019452,2]
[389127525,1759582433392,-500.0,0.00019452,2]
[389127526,1759582433421,-275.97469905,0.00019726,2]
[389127527,1759582433450,-500.0,0.00019726,2]
[389127528,1759582433478,-500.0,0.00019726,2]
[389127529,1759582433507,-500.0,0.00019726,2]
[389127530,1759582433535,-500.0,0.00019726,2]
[389127531,1759582433566,-500.0,0.00019726,2]
[389127532,1759582433600,-500.0,0.00019726,2]
[389127533,1759582433631,-340.22077802,0.00019726,2]
[389127534,1759582433831,-159.77922198,0.00019726,2]
[389127535,1759582433862,-500.0,0.00019726,2]
[389127536,1759582433894,-500.0,0.00019726,2]
[389127537,1759582433930,-500.0,0.00019726,2]
[389127538,1759582433962,-1631.73,0.00019726,2]
[389127539,1759582433993,-598.63,0.00019726,2]
[389127540,1759582434025,-500.0,0.00019726,2]
[389127541,1759582434056,-219.98575775,0.00019726,2]
[389127542,1759582434153,-1233.42,0.00019726,2]
[389127543,1759582434184,-634.02,0.00019726,2]
[389127544,1759582434214,-500.0,0.00019726,2]
[389127545,1759582434243,-1097.61,0.00019726,2]
[389127546,1759582434272,-1485.06,0.00019726,2]
[389127547,1759582435135,-124.82922198,0.00019178,2]
[389127548,1759582435151,-375.17077802,0.00019178,2]
[389127549,1759582435162,-500.0,0.00019452,2]
[389127550,1759582435171,-99.79,0.00019726,2]
[389127551,1759582435180,-500.0,0.00019726,2]
[389127552,1759582435190,-109.88922198,0.00019726,2]
[389127553,1759582436562,-346.60859465,0.00019178,2]
[389127554,1759582436592,-500.0,0.00019178,2]
[389127555,1759582436622,-500.0,0.00019178,2]
[389127556,1759582436651,-524.68,0.00019178,2]
[389127557,1759582436680,-500.0,0.00019178,2]
[389127558,1759582436733,-500.0,0.00019452,2]
[389127559,1759582436762,-524.68,0.00019452,2]
[389127560,1759582436794,-500.0,0.00019452,2]
[389127561,1759582436824,-390.11077802,0.00019726,2]
[389127562,1759582436853,-500.0,0.00019726,2]
[389127563,1759582437027,-1523.68,0.00019726,2]
[389127564,1759582437058,-500.0,0.00019726,2]
[389127565,1759582437087,-500.0,0.00019726,2]
[389127566,1759582437117,-500.0,0.00019726,2]
[389127567,1759582437145,-711.23,0.00019726,2]
[389127568,1759582437173,-611.14,0.00019726,2]
[389127569,1759582437201,-500.0,0.00019726,2]
[389127570,1759582437297,-500.0,0.00019726,2]
[389127571,1759582437331,-500.0,0.00019726,2]
[389127572,1759582437361,-500.0,0.00019726,2]
[389127573,1759582437388,-500.0,0.00019726,2]
[389127574,1759582437419,-500.0,0.00019726,2]
[389127575,1759582437449,-648.88081839,0.00019726,2]
[389127576,1759582437476,-500.0,0.00019726,2]
[389127577,1759582437504,-500.0,0.00019726,2]
[389127578,1759582437531,-524.3,0.00019726,2]
[389127579,1759582437659,-1738.76,0.00019726,2]
[389127580,1759582437688,-500.0,0.00019726,2]
[389127581,1759582437716,-500.0,0.00019726,2]
[389127582,1759582437745,-500.0,0.00019726,2]
[389127583,1759582437774,-910.23,0.00019726,2]
[389127584,1759582437807,-500.0,0.00019726,2]
[389127585,1759582438336,-27.46125466,0.00019726,2]
[389127586,1759582438351,-677.00874534,0.00019726,2]
[389127587,1759582438360,-233.22125466,0.00019726,2]
[389127588,1759582438376,-266.77874534,0.00019726,2]
[389127589,1759582438385,-233.22125466,0.00019726,2]
[389127590,1759582438399,-318.58874534,0.00019726,2]
[389127591,1759582438408,-383.44125466,0.00019726,2]
[389127593,1759582446324,-500.0,0.00019178,2]
[389127594,1759582446352,-500.0,0.00019178,2]
[389127595,1759582446380,-500.0,0.00019178,2]
[389127596,1759582446418,-500.0,0.00019178,2]
[389127597,1759582446450,-500.0,0.00019178,2]
[389127598,1759582446478,-500.0,0.00019178,2]
[389127599,1759582446507,-500.0,0.00019178,2]
[389127600,1759582446534,-500.0,0.00019452,2]
[389127601,1759582446562,-500.0,0.00019452,2]
[389127602,1759582446591,-500.0,0.00019452,2]
[389127603,1759582446690,-220.6117151,0.00019452,2]
[389127604,1759582446719,-300.0,0.00019725,2]
[389127605,1759582446747,-116.55874534,0.00019726,2]
[389127606,1759582446776,-500.0,0.00019726,2]
[389127607,1759582446807,-1488.24,0.00019726,2]
[389127608,1759582446836,-780.04,0.00019726,2]
[389127609,1759582446865,-500.0,0.00019726,2]
[389127610,1759582446893,-998.62,0.00019726,2]
[389127611,1759582447015,-500.0,0.00019726,2]
[389127612,1759582447044,-1350.22,0.00019726,2]
[389127613,1759582447073,-500.0,0.00019726,2]
[389127614,1759582447101,-627.42,0.00019726,2]
[389127615,1759582447132,-661.69,0.00019726,2]
[389127616,1759582447160,-500.0,0.00019726,2]
[389127617,1759582447189,-500.0,0.00019726,2]
[389127618,1759582447217,-221.35,0.00019726,2]
[389127619,1759582447365,-278.65,0.00019726,2]
[389127620,1759582447394,-1509.7,0.00019726,2]
[389127621,1759582447425,-500.0,0.00019726,2]
[389127622,1759582447459,-578.71,0.00019726,2]
[389127623,1759582447490,-554.38,0.00019726,2]
[389127624,1759582447519,-500.0,0.00019726,2]
[389127625,1759582447550,-500.0,0.00019726,2]
[389127626,1759582447585,-526.35,0.00019726,2]
[389127627,1759582447768,-104.43,0.00019726,2]
[389127628,1759582447802,-1067.81,0.00019726,2]
[389127629,1759582447833,-715.43,0.00019726,2]
[389127630,1759582447863,-500.0,0.00019726,2]
[389127631,1759582447893,-500.0,0.00019726,2]
[389127632,1759582447923,-676.23,0.00019726,2]
[389127633,1759582447953,-500.0,0.00019726,2]
[389127634,1759582448063,-2454.08,0.00019726,2]
[389127635,1759582448093,-1234.75,0.00019726,2]
[389127636,1759582449080,-500.0,0.00019178,2]
[389127637,1759582449089,-785.25782446,0.00019726,2]
[389127638,1759582449110,-1837.09217554,0.00019726,2]
[389127639,1759582449119,-500.0,0.00019726,2]
[389127640,1759582449129,-500.0,0.00019726,2]
[389127641,1759582449139,-500.0,0.00019726,2]
[389127642,1759582449148,-500.0,0.00019726,2]
[389127643,1759582449157,-20.00782446,0.00019726,2]
[389127644,1759582466575,-372.1154474,0.00019177,2]
[389127645,1759582466604,-500.0,0.00019178,2]
[389127646,1759582466636,-462.30280547,0.00019178,2]
[389127647,1759582466669,-1348.99,0.00019178,2]
[389127648,1759582466700,-500.0,0.00019178,2]
[389127649,1759582466730,-645.44,0.00019178,2]
[389127650,1759582466759,-500.0,0.00019178,2]
[389127651,1759582466788,-220.63,0.00019178,2]
[389127652,1759582466818,-401.05349426,0.00019178,2]
[389127653,1759582466995,-98.94650574,0.00019178,2]
[389127654,1759582470494,-506.45,0.00019178,2]
[389127655,1759582470527,-500.0,0.00019178,2]
[389127656,1759582470559,-524.42,0.00019178,2]
[389127657,1759582470591,-706.39,0.00019178,2]
[389127658,1759582470620,-509.08508407,0.00019178,2]
[389127659,1759582470650,-500.0,0.00019452,2]
[389127660,1759582470682,-1348.99,0.00019452,2]
[389127661,1759582470712,-309.33983186,0.00019452,2]
[389127662,1759582471067,-190.66016814,0.00019452,2]
[389127663,1759582474545,-500.0,0.00019177,2]
[389127664,1759582474576,-477.37757291,0.00019177,2]
[389127665,1759582474605,-500.0,0.00019178,2]
[389127666,1759582474635,-844.69,0.00019178,2]
[389127667,1759582474666,-500.0,0.00019178,2]
[389127668,1759582474695,-500.0,0.00019178,2]
[389127669,1759582474727,-645.44,0.00019452,2]
[389127670,1759582474758,-506.45,0.00019452,2]
[389127671,1759582474787,-500.0,0.00019452,2]
[389127672,1759582474977,-52.09485418,0.00019452,2]
[389127673,1759582476894,-500.0,0.00019178,2]
[389127674,1759582476923,-500.0,0.00019178,2]
[389127675,1759582478014,500.0,0.00019178,2]
[389127676,1759582478488,500.0,0.00019178,2]
[389127677,1759582479976,500.0,0.00019178,2]
[389127678,1759582482327,500.0,0.00019178,2]
[389127679,1759582483192,3591.67,0.00019178,2]
[389127680,1759582483628,500.0,0.00019177,2]
[389127681,1759582483800,798.42,0.00019178,2]
[389127682,1759582487076,1109.92,0.00019178,2]
[389127683,1759582487102,85.5,0.00019178,2]
[389127684,1759582488198,500.0,0.00019178,2]
[389127685,1759582489707,500.0,0.00019178,2]
[389127686,1759582489938,500.0,0.00019178,2]
[389127687,1759582493861,500.0,0.00019178,2]
[389127688,1759582494085,-472.32514582,0.00019452,2]
[389127689,1759582494113,-706.39,0.00019452,2]
[389127690,1759582494141,-500.0,0.00019452,2]
[389127691,1759582494170,-844.69,0.00019452,2]
[389127692,1759582494199,-500.0,0.00019452,2]
[389127693,1759582494227,-500.0,0.00019452,2]
[389127694,1759582494255,-500.0,0.00019452,2]
[389127695,1759582494284,-500.0,0.00019452,2]
[389127696,1759582494311,-453.19970836,0.00019452,2]
[389127697,1759582494759,178.61745961,0.00019177,2]
[389127698,1759582494790,500.0,0.00019178,2]
[389127699,1759582495229,1935.58,0.00019178,2]
[389127700,1759582500772,-359.60160276,0.00019177,2]
[389127701,1759582500801,-500.0,0.00019178,2]
[389127702,1759582500831,-500.0,0.00019178,2]
[389127703,1759582500859,-500.0,0.00019178,2]
[389127704,1759582500886,-500.0,0.00019178,2]
[389127705,1759582500916,-979.07,0.00019178,2]
[389127706,1759582500944,-500.0,0.00019178,2]
[389127707,1759582500972,-46.80029164,0.00019452,2]
[389127708,1759582504788,-300.0,0.00019177,2]
[389127709,1759582504819,-300.0,0.00019177,2]
[389127710,1759582504850,-3591.67,0.00019452,2]
[389127711,1759582504881,-798.42,0.00019452,2]
[389127712,1759582508867,-500.0,0.00019178,2]
[389127713,1759582508898,-909.86,0.00019178,2]
[389127714,1759582508934,-769.38,0.00019178,2]
[389127715,1759582508964,-1200.0,0.00019451,2]
[389127716,1759582509000,-1195.42,0.00019452,2]
[389127717,1759582509033,-350.69,0.00019452,2]
[389127718,1759582512871,-500.0,0.00019178,2]
[389127719,1759582512903,-1179.48,0.00019178,2]
[389127720,1759582512937,-648.15001957,0.00019178,2]
[389127721,1759582512972,-149.31,0.00019452,2]
[389127722,1759582513004,-500.0,0.00019452,2]
[389127723,1759582513035,-500.0,0.00019452,2]
[389127724,1759582513064,-500.0,0.00019452,2]
[389127725,1759582513095,-110.54996086,0.00019452,2]
[389127726,1759582515023,-500.0,0.00019178,2]
[389127727,1759582515322,636.72,0.00019178,2]
[389127728,1759582515807,752.51,0.00019178,2]
[389127729,1759582516229,500.0,0.00019178,2]
[389127730,1759582516601,7110.78,0.00019078,2]
[389127731,1759582516626,2889.22,0.00019078,2]
[389127732,1759582519804,500.0,0.00019178,2]
[389127733,1759582520473,500.0,0.00019178,2]
[389127734,1759582520962,580.96,0.00019178,2]
[389127735,1759582521129,576.97027057,0.00019178,2]
[389127736,1759582522438,1717.63,0.00019178,2]
[389127737,1759582524941,500.0,0.00019178,2]
[389127738,1759582525010,599.86,0.00019178,2]
[389127739,1759582527642,619.63,0.00019178,2]
[389127740,1759582528410,249.65226931,0.00019178,2]
[389127741,1759582530231,500.0,0.00019178,2]
[389127742,1759582531160,-1825.03003914,0.00019452,2]
[389127743,1759582531194,-500.0,0.00019452,2]
[389127744,1759582531226,-500.0,0.00019452,2]
[389127745,1759582531256,-500.0,0.00019452,2]
[389127746,1759582531286,-500.0,0.00019452,2]
[389127748,1759582531316,-979.07,0.00019452,2]
[389127750,1759582535161,-500.0,0.00019178,2]
[389127751,1759582535195,-2068.78,0.00019178,2]
[389127752,1759582535227,-500.0,0.00019178,2]
[389127753,1759582535264,-500.0,0.00019452,2]
[389127754,1759582535297,-500.0,0.00019452,2]
[389127755,1759582535328,-909.86,0.00019452,2]
[389127756,1759582537186,-769.38,0.00019452,2]
[389127757,1759582537220,-500.0,0.00019452,2]
[389127758,1759582537254,-1179.48,0.00019452,2]
[389127759,1759582537287,-500.0,0.00019452,2]
[389127760,1759582537321,-636.72,0.00019452,2]
[389127761,1759582537355,-752.51,0.00019452,2]
[389127762,1759582537386,-500.0,0.00019452,2]
[389127763,1759582541319,-1216.94,0.00019178,2]
[389127764,1759582541350,-500.0,0.00019452,2]
[389127765,1759582541380,-500.0,0.00019452,2]
[389127766,1759582541410,-580.96,0.00019452,2]
[389127767,1759582541441,-1717.63,0.00019452,2]
[389127768,1759582541473,-468.95,0.00019452,2]
[389127769,1759582545319,-504.01,0.00019178,2]
[389127770,1759582545350,-617.08,0.00019178,2]
[389127771,1759582545380,-500.0,0.00019178,2]
[389127772,1759582545411,-31.05,0.00019452,2]
[389127773,1759582545440,-599.86,0.00019452,2]
[389127774,1759582545472,-619.63,0.00019452,2]
[389127775,1759582545503,-500.0,0.00019452,2]
[389127776,1759582545535,-500.0,0.00019452,2]
[389127777,1759582545569,-187.97,0.00019452,2]
[389127779,1759582546068,-1880.81,0.00019452,2]
[389127780,1759582546100,-500.0,0.00019452,2]
[389127781,1759582546131,-1216.94,0.00019452,2]
[389127782,1759582546163,-504.01,0.00019452,2]
[389127783,1759582546195,-617.08,0.00019452,2]
[389127784,1759582546228,-62.33,0.00019452,2]
[389127785,1759582546279,-437.67,0.00019452,2]
[389127786,1759582546311,-1683.74658318,0.00019626,2]
[389127787,1759582546344,-500.0,0.00019725,2]
[389127788,1759582546374,-500.0,0.00019725,2]
[389127789,1759582546405,-500.0,0.00019725,2]
[389127790,1759582546436,-500.0,0.00019725,2]
[389127791,1759582546466,-500.0,0.00019725,2]
[389127792,1759582546499,-353.56076402,0.00019726,2]
[389127794,1759582546605,-902.15,0.00019726,2]
[389127795,1759582546635,-500.0,0.00019726,2]
[389127796,1759582546666,-500.0,0.00019726,2]
[389127797,1759582546696,-503.96,0.00019726,2]
[389127798,1759582546728,-524.69,0.00019726,2]
[389127799,1759582546761,-500.0,0.00019726,2]
[389127800,1759582546792,-500.0,0.00019726,2]
[389127801,1759582546845,-2409.56,0.00019726,2]
[389127802,1759582546876,-1163.05,0.00019726,2]
[389127803,1759582546908,-644.08,0.00019726,2]
[389127804,1759582546941,-500.0,0.00019726,2]
[389127806,1759582547153,-1028.95,0.00019726,2]
[389127807,1759582547183,-1529.22,0.00019726,2]
[389127808,1759582547213,-500.0,0.00019726,2]
[389127809,1759582547243,-500.0,0.00019726,2]
[389127810,1759582547275,-1052.49,0.00019726,2]
[389127812,1759582551269,-500.0,0.00019178,2]
[389127813,1759582551299,-500.0,0.00019178,2]
[389127814,1759582551331,-500.0,0.00019178,2]
[389127815,1759582551359,-500.0,0.00019178,2]
[389127816,1759582551388,-500.0,0.00019452,2]
[389127817,1759582551416,-500.0,0.00019452,2]
[389127818,1759582551445,-500.0,0.00019452,2]
[389127819,1759582551474,-500.0,0.00019452,2]
[389127820,1759582551502,-500.0,0.00019725,2]
[389127821,1759582551531,-221.32,0.00019726,2]
[389127822,1759582551632,-557.37,0.00019726,2]
[389127823,1759582551663,-500.0,0.00019726,2]
[389127824,1759582551695,-915.47,0.00019726,2]
[389127825,1759582551727,-642.92,0.00019726,2]
[389127826,1759582551759,-512.31,0.00019726,2]
[389127827,1759582551790,-500.0,0.00019726,2]
[389127828,1759582551822,-500.0,0.00019726,2]
[389127829,1759582551855,-524.68,0.00019726,2]
[389127830,1759582551887,-194.51,0.00019726,2]
[389127831,1759582552023,-305.49,0.00019726,2]
[389127832,1759582552054,-500.0,0.00019726,2]
[389127833,1759582552085,-500.0,0.00019726,2]
[389127834,1759582552117,-470.08892628,0.00019726,2]
[389127835,1759582552150,-500.0,0.00019726,2]
[389127836,1759582552180,-1348.99,0.00019726,2]
[389127837,1759582552210,-645.44,0.00019726,2]
[389127838,1759582552240,-506.45,0.00019726,2]
[389127839,1759582552324,-500.0,0.00019726,2]
[389127840,1759582552352,-524.42,0.00019726,2]
[389127841,1759582552381,-706.39,0.00019726,2]
[389127842,1759582552411,-443.17015291,0.00019726,2]
[389127843,1759582552445,-844.69,0.00019726,2]
[389127844,1759582552477,-500.0,0.00019726,2]
[389127845,1759582552509,-500.0,0.00019726,2]
[389127846,1759582552541,-500.0,0.00019726,2]
[389127847,1759582552573,-462.66969418,0.00019726,2]
[389127848,1759582563323,-300.0,0.00019177,2]
[389127849,1759582563353,-500.0,0.00019178,2]
[389127850,1759582563384,-500.0,0.00019178,2]
[389127851,1759582563414,-500.0,0.00019178,2]
[389127852,1759582563447,-500.0,0.00019178,2]
[389127853,1759582563477,-500.0,0.00019178,2]
[389127854,1759582563507,-500.0,0.00019178,2]
[389127855,1759582563537,-500.0,0.00019178,2]
[389127856,1759582563567,-919.89,0.00019178,2]
[389127857,1759582563596,-84.93870996,0.00019452,2]
[389127858,1759582563730,-390.35258008,0.00019452,2]
[389127859,1759582563761,-500.0,0.00019452,2]
[389127860,1759582563792,-501.84,0.00019452,2]
[389127861,1759582563823,-500.0,0.00019452,2]
[389127862,1759582563855,-500.0,0.00019452,2]
[389127863,1759582563886,-500.0,0.00019452,2]
[389127864,1759582563916,-500.0,0.00019452,2]
[389127865,1759582563948,-919.89,0.00019452,2]
[389127866,1759582563983,-500.0,0.00019725,2]
[389127867,1759582564014,-37.33030582,0.00019726,2]
[389127868,1759582564154,-3591.67,0.00019726,2]
[389127869,1759582564186,-798.42,0.00019726,2]
[389127870,1759582564218,-24.41,0.00019726,2]
[389127871,1759582564329,-1171.01,0.00019726,2]
[389127872,1759582564360,-500.0,0.00019726,2]
[389127873,1759582564392,-500.0,0.00019726,2]
[389127874,1759582564428,-500.0,0.00019726,2]
[389127875,1759582564462,-500.0,0.00019726,2]
[389127876,1759582564492,-1722.41,0.00019726,2]
[389127877,1759582564633,-213.17,0.00019726,2]
[389127878,1759582564808,-500.0,0.00019726,2]
[389127879,1759582564841,-500.0,0.00019726,2]
[389127880,1759582564875,-500.0,0.00019726,2]
[389127881,1759582564910,-979.07,0.00019726,2]
[389127882,1759582564944,-500.0,0.00019726,2]
[389127883,1759582564974,-909.86,0.00019726,2]
[389127884,1759582565011,-769.38,0.00019726,2]
[389127885,1759582565396,-500.0,0.00019726,2]
[389127886,1759582565428,-1179.48,0.00019726,2]